[Event "ESTCC 65 2019"]
[Site "Mali Losinj"]
[Date "2019.09.26"]
[Round "9.23"]
[White "Patola, Eero"]
[Black "Reuben, Stewart"]
[Result "0-1"]
[ECO "A36"]
[WhiteElo "1798"]
[BlackElo "1983"]
[Annotator "NA"]
[PlyCount "118"]
[EventDate "2019.09.18"]
[EventType "team-tourn"]
[EventCountry "CRO"]
[SourceTitle "playchess.com"]
[Source "ChessBase"]
[SourceQuality "1"]
[WhiteTeam "Finland"]
[BlackTeam "England"]
[WhiteTeamCountry "FIN"]
[BlackTeamCountry "ENG"]
[TimeControl "40/5400+30:1800+30"]

1. e4 {[%emt 0:00:30]} c5 {[%emt 0:00:30]} 2. c4 {[%emt 0:00:00]} Nc6 {[%emt 0:03:30]} 3. Nc3 {[%emt 0:00:00]} g6 {[%emt 0:00:00]} 4. g3 {[%emt 0:00:30]} Bg7 {[%emt 0:00:00]} 5. Bg2 {[%emt 0:00:00]} e6 {[%emt 0:00:30]} 6. Nge2 {[%emt 0:00:00]} Nge7 {[%emt 0:00:30]} 7. O-O {[%emt 0:00:30]} a6 {[%emt 0:00:30]} 8. d3 {[%emt 0:00:30]} Rb8 {[%emt 0:01:30]} 9. Be3 {[%emt 0:02:30]} Nd4 {[%emt 0:00:30]} 10. Bf4 {[%emt 0:03:30]} d6 {[%emt 0:01:30]} 11. Rb1 {[%emt 0:02:30]} Nec6 {[%emt 0:10:30]} 12. Nxd4 {[%emt 0:00:30]} Nxd4 {[%emt 0:04:30]} 13. Ne2 {[%emt 0:01:30]} b5 {[%emt 0:08:30]} 14. b3 {[%emt 0:03:30]} O-O {[%emt 0:02:30]} 15. Nxd4 {[%emt 0:00:30]} Bxd4 {[%emt 0:03:30]} 16. Bh6 {[%emt 0:03:30]} Re8 {[%emt 0:00:30]} 17. h4 {[%emt 0:01:30]} Bb7 {[%emt 0:01:30]} 18. Qd2 {[%emt 0:04:30]} b4 {[%emt 0:06:30]} 19. Be3 {[%emt 0:01:30]} Bc3 {[%emt 0:02:30]} 20. Qc2 {[%emt 0:04:30]} Qf6 {[%emt 0:04:30]} 21. Bg5 {[%emt 0:03:30]} Qg7 {[%emt 0:00:30]} 22. Qc1 {[%emt 0:00:30]} a5 {[%emt 0:14:30]} 23. Bh6 {[%emt 0:03:30]} Qh8 {[%emt 0:03:30]} 24. Bf4 {[%emt 0:03:30]} Be5 {[%emt 0:01:30]} 25. Be3 {[%emt 0:01:30]} Bc6 {[%emt 0:02:30]} 26. Qd1 {[%emt 0:01:30]} a4 {[%emt 0:06:48]} 27. f4 {[%emt 0:05:30]} Bd4 {[%emt 0:00:43]} 28. Qe2 {[%emt 0:00:30]} Ra8 {[%emt 0:01:51]} 29. Bxd4 {[%emt 0:03:30]} Qxd4+ {[%emt 0:00:24]} 30. Kh2 {[%emt 0:00:30]} axb3 {[%emt 0:00:42]} 31. axb3 {[%emt 0:00:30]} Ra3 {[%emt 0:01:17]} 32. Rb2 {[%emt 0:03:30]} Qc3 {[%emt 0:01:45]} 33. Rfb1 {[%emt 0:01:30]} Rea8 {[%emt 0:02:33]} 34. Qd2 {[%emt 0:00:30]} Rxb3 {[%emt 0:01:14]} 35. Qxc3 {[%emt 0:03:30]} Rxc3 {[%emt 0:00:39]} 36. Bf1 {[%emt 0:01:30]} Raa3 {[%emt 0:00:41]} 37. g4 {[%emt 0:00:30]} Ba4 {[%emt 0:00:42]} 38. Re1 {[%emt 0:01:30]} Bc2 {[%emt 0:01:26]} 39. e5 {[%emt 0:02:30]} Bxd3 {[%emt 0:03:24]} 40. Bxd3 {[%emt 0:04:30]} Rxd3 {[%emt 0:00:14]} 41. exd6 {[%emt 0:29:30]} Rxd6 {[%emt 0:31:24]} 42. Re5 {[%emt 0:00:30]} Rc6 {[%emt 0:04:16]} 43. f5 {[%emt 0:00:30]} gxf5 {[%emt 0:01:29]} 44. gxf5 {[%emt 0:00:00]} Rc3 {[%emt 0:00:00]} 45. Rg2+ {[%emt 0:00:00]} Kf8 {[%emt 0:00:00]} 46. fxe6 {[%emt 0:00:00]} fxe6 {[%emt 0:00:00]} 47. Rh5 {[%emt 0:00:00]} Rc7 {[%emt 0:00:00]} 48. Ra2 {[%emt 0:00:00]} b3 {[%emt 0:00:00]} 49. Ra8+ {[%emt 0:00:00]} Kg7 {[%emt 0:00:00]} 50. Rg5+ {[%emt 0:00:00]} Kf7 {[%emt 0:00:00]} 51. Rb8 {[%emt 0:00:00]} Rd7 {[%emt 0:00:00]} 52. Rg2 {[%emt 0:00:00]} Rd4 {[%emt 0:00:00]} 53. Rb7+ {[%emt 0:00:00]} Kf6 {[%emt 0:00:00]} 54. Rxh7 {[%emt 0:00:00]} Rdxc4 {[%emt 0:00:23]} 55. Rh6+ {[%emt 0:00:00]} Ke5 {[%emt 0:00:53]} 56. Re2+ {[%emt 0:00:00]} Re4 {[%emt 0:03:02]} 57. Rxe4+ {[%emt 0:00:00]} Kxe4 {[%emt 0:00:09]} 58. Rxe6+ {[%emt 0:00:00]} Kf5 {[%emt 0:00:22]} 59. Rb6 {[%emt 0:00:00]} Kg4 {[%emt 0:00:07]} 0-1

[Event "ESTCC 65 2019"]
[Site "Mali Losinj"]
[Date "2019.09.26"]
[Round "9.25"]
[White "Grahn, Lars"]
[Black "Carlsten, Peter"]
[Result "0-1"]
[ECO "C41"]
[WhiteElo "2024"]
[BlackElo "1986"]
[Annotator "NA"]
[PlyCount "78"]
[EventDate "2019.09.18"]
[EventType "team-tourn"]
[EventCountry "CRO"]
[SourceTitle "playchess.com"]
[Source "ChessBase"]
[SourceQuality "1"]
[WhiteTeam "Sweden"]
[BlackTeam "Sweden"]
[WhiteTeamCountry "SWE"]
[BlackTeamCountry "SWE"]
[TimeControl "40/5400+30:1800+30"]

1. d4 {[%emt 0:00:30]} d6 {[%emt 0:00:30]} 2. e4 {[%emt 0:00:00]} Nf6 {[%emt 0:00:30]} 3. Nc3 {[%emt 0:00:00]} e5 {[%emt 0:00:00]} 4. Nf3 {[%emt 0:00:30]} Nbd7 {[%emt 0:00:00]} 5. Bc4 {[%emt 0:00:30]} Be7 {[%emt 0:00:00]} 6. O-O {[%emt 0:00:30]} O-O {[%emt 0:00:00]} 7. Re1 {[%emt 0:00:30]} c6 {[%emt 0:00:30]} 8. a4 {[%emt 0:00:30]} b6 {[%emt 0:00:00]} 9. h3 {[%emt 0:00:30]} a6 {[%emt 0:00:00]} 10. Ba2 {[%emt 0:00:30]} Bb7 {[%emt 0:02:30]} 11. Bg5 {[%emt 0:10:30]} h6 {[%emt 0:19:30]} 12. Bh4 {[%emt 0:01:30]} Qc7 {[%emt 0:06:30]} 13. Qd2 {[%emt 0:10:30]} b5 {[%emt 0:02:30]} 14. axb5 {[%emt 0:02:30]} axb5 {[%emt 0:00:30]} 15. Bb3 {[%emt 0:05:30]} Rxa1 {[%emt 0:01:30]} 16. Rxa1 {[%emt 0:00:30]} b4 {[%emt 0:19:30]} 17. Na2 {[%emt 0:09:30]} Nxe4 {[%emt 0:06:30]} 18. Qe2 {[%emt 0:15:30]} Bxh4 {[%emt 0:00:30]} 19. Qxe4 {[%emt 0:00:30]} Bf6 {[%emt 0:00:30]} 20. dxe5 {[%emt 0:07:30]} Nxe5 {[%emt 0:00:30]} 21. Nxb4 {[%emt 0:09:30]} Nxf3+ {[%emt 0:02:30]} 22. Qxf3 {[%emt 0:00:00]} Bxb2 {[%emt 0:01:30]} 23. Rd1 {[%emt 0:04:00]} Bf6 {[%emt 0:02:30]} 24. c3 {[%emt 0:02:30]} d5 {[%emt 0:11:30]} 25. Bc2 {[%emt 0:01:15]} Qe5 {[%emt 0:01:30]} 26. Rd3 {[%emt 0:01:58]} Qd6 {[%emt 0:04:14]} 27. Qh5 {[%emt 0:02:26]} Re8 {[%emt 0:02:11]} 28. g3 {[%emt 0:00:47]} Re5 {[%emt 0:01:04]} 29. Qd1 {[%emt 0:04:11]} Qe6 {[%emt 0:00:58]} 30. Kh2 {[%emt 0:05:02]} c5 {[%emt 0:03:54]} 31. Na2 {[%emt 0:00:10]} Re1 {[%emt 0:02:07]} 32. Qf3 {[%emt 0:01:03]} Qe7 {[%emt 0:05:27]} 33. Re3 {[%emt 0:01:42]} Rxe3 {[%emt 0:00:06]} 34. fxe3 {[%emt 0:00:14]} d4 {[%emt 0:00:37]} 35. Qf4 {[%emt 0:02:33]} Be5 {[%emt 0:00:56]} 36. Qf5 {[%emt 0:00:52]} g6 {[%emt 0:00:15]} 37. Qg4 {[%emt 0:00:36]} dxe3 {[%emt 0:00:53]} 38. Bb3 {[%emt 0:01:12]} Kg7 {[%emt 0:00:29]} 39. Bd1 {[%emt 0:00:41]} Qf6 {[%emt 0:00:41]} 0-1

[Event "ESTCC 65 2019"]
[Site "Mali Losinj"]
[Date "2019.09.26"]
[Round "9.26"]
[White "Ahlstrom, Per"]
[Black "Wademark, Helge"]
[Result "0-1"]
[ECO "A88"]
[WhiteElo "1838"]
[BlackElo "1994"]
[Annotator "NA"]
[PlyCount "62"]
[EventDate "2019.09.18"]
[EventType "team-tourn"]
[EventCountry "CRO"]
[SourceTitle "playchess.com"]
[Source "ChessBase"]
[SourceQuality "1"]
[WhiteTeam "Sweden"]
[BlackTeam "Sweden"]
[WhiteTeamCountry "SWE"]
[BlackTeamCountry "SWE"]
[TimeControl "40/5400+30:1800+30"]

1. c4 {[%emt 0:00:30]} f5 {[%emt 0:01:30]} 2. Nc3 {[%emt 0:00:30]} Nf6 {[%emt 0:00:30]} 3. Nf3 {[%emt 0:05:30]} d6 {[%emt 0:00:00]} 4. d4 {[%emt 0:04:30]} g6 {[%emt 0:01:00]} 5. g3 {[%emt 0:00:30]} Bg7 {[%emt 0:00:00]} 6. Bg2 {[%emt 0:00:30]} O-O {[%emt 0:00:00]} 7. O-O {[%emt 0:00:30]} c6 {[%emt 0:00:30]} 8. Qc2 {[%emt 0:03:30]} Qc7 {[%emt 0:02:30]} 9. b3 {[%emt 0:06:30]} Na6 {[%emt 0:06:30]} 10. Bb2 {[%emt 0:07:30]} Bd7 {[%emt 0:04:30]} 11. Rac1 {[%emt 0:02:30]} e5 {[%emt 0:05:30]} 12. dxe5 {[%emt 0:09:30]} dxe5 {[%emt 0:02:30]} 13. Rfd1 {[%emt 0:05:30]} Nb4 {[%emt 0:02:30]} 14. Qd2 {[%emt 0:03:30]} e4 {[%emt 0:01:30]} 15. Ng5 {[%emt 0:16:30]} Rad8 {[%emt 0:02:30]} 16. Ba3 {[%emt 0:07:30]} Bc8 {[%emt 0:03:30]} 17. Qf4 {[%emt 0:04:01]} Rxd1+ {[%emt 0:04:30]} 18. Rxd1 {[%emt 0:02:23]} Qa5 {[%emt 0:00:30]} 19. Bb2 {[%emt 0:04:34]} Nxa2 {[%emt 0:03:30]} 20. Qd2 {[%emt 0:01:34]} Nxc3 {[%emt 0:01:30]} 21. Bxc3 {[%emt 0:00:04]} Qc7 {[%emt 0:00:30]} 22. h4 {[%emt 0:04:00]} h6 {[%emt 0:08:30]} 23. Nh3 {[%emt 0:00:18]} Kf7 {[%emt 0:01:30]} 24. e3 {[%emt 0:03:43]} Re8 {[%emt 0:01:30]} 25. Bxf6 {[%emt 0:04:03]} Bxf6 {[%emt 0:00:30]} 26. h5 {[%emt 0:00:07]} g5 {[%emt 0:00:30]} 27. Bf1 {[%emt 0:00:11]} Re7 {[%emt 0:00:30]} 28. Qb4 {[%emt 0:01:18]} Rd7 {[%emt 0:02:30]} 29. Rxd7+ {[%emt 0:00:13]} Bxd7 {[%emt 0:00:30]} 30. c5 {[%emt 0:00:26]} b6 {[%emt 0:00:30]} 31. cxb6 {[%emt 0:02:11]} axb6 {[%emt 0:00:30]} 0-1

[Event "ESTCC 65 2019"]
[Site "Mali Losinj"]
[Date "2019.09.26"]
[Round "9.27"]
[White "Bernhardsson, Sten"]
[Black "Dalling, Peter"]
[Result "1-0"]
[ECO "D55"]
[WhiteElo "1956"]
[BlackElo "1824"]
[Annotator "NA"]
[PlyCount "107"]
[EventDate "2019.09.18"]
[EventType "team-tourn"]
[EventCountry "CRO"]
[SourceTitle "playchess.com"]
[Source "ChessBase"]
[SourceQuality "1"]
[WhiteTeam "Sweden"]
[BlackTeam "Sweden"]
[WhiteTeamCountry "SWE"]
[BlackTeamCountry "SWE"]
[TimeControl "40/5400+30:1800+30"]

1. d4 {[%emt 0:00:30]} Nf6 {[%emt 0:00:30]} 2. Nf3 {[%emt 0:00:00]} d5 {[%emt 0:00:00]} 3. c4 {[%emt 0:00:00]} e6 {[%emt 0:01:00]} 4. Bg5 {[%emt 0:00:30]} Be7 {[%emt 0:00:30]} 5. e3 {[%emt 0:00:30]} O-O {[%emt 0:00:00]} 6. Nc3 {[%emt 0:00:00]} b6 {[%emt 0:05:00]} 7. cxd5 {[%emt 0:00:00]} exd5 {[%emt 0:00:30]} 8. Rc1 {[%emt 0:03:30]} Bg4 {[%emt 0:07:30]} 9. Be2 {[%emt 0:01:30]} Nbd7 {[%emt 0:01:30]} 10. O-O {[%emt 0:02:30]} c5 {[%emt 0:04:30]} 11. h3 {[%emt 0:05:30]} Be6 {[%emt 0:01:30]} 12. Bf4 {[%emt 0:06:30]} a6 {[%emt 0:06:30]} 13. Bd3 {[%emt 0:03:30]} c4 {[%emt 0:02:30]} 14. Bb1 {[%emt 0:00:30]} b5 {[%emt 0:02:30]} 15. a3 {[%emt 0:03:30]} Qb6 {[%emt 0:01:30]} 16. Ng5 {[%emt 0:12:30]} h6 {[%emt 0:03:30]} 17. Nxe6 {[%emt 0:04:30]} Qxe6 {[%emt 0:00:30]} 18. Qc2 {[%emt 0:00:30]} Rfe8 {[%emt 0:07:30]} 19. e4 {[%emt 0:07:30]} Nf8 {[%emt 0:00:30]} 20. Rfe1 {[%emt 0:02:30]} dxe4 {[%emt 0:03:30]} 21. Nxe4 {[%emt 0:00:30]} Nxe4 {[%emt 0:00:30]} 22. Rxe4 {[%emt 0:00:30]} Qb6 {[%emt 0:03:30]} 23. Rce1 {[%emt 0:01:30]} Ng6 {[%emt 0:01:30]} 24. d5 {[%emt 0:13:30]} Kf8 {[%emt 0:09:30]} 25. Bg3 {[%emt 0:05:30]} Bc5 {[%emt 0:02:30]} 26. Rxe8+ {[%emt 0:05:45]} Rxe8 {[%emt 0:00:30]} 27. Rxe8+ {[%emt 0:00:15]} Kxe8 {[%emt 0:00:30]} 28. Qf5 {[%emt 0:00:30]} Qd8 {[%emt 0:02:30]} 29. Qf3 {[%emt 0:02:27]} Qg5 {[%emt 0:04:30]} 30. Kh2 {[%emt 0:03:31]} Qe7 {[%emt 0:05:30]} 31. d6 {[%emt 0:03:15]} Qd8 {[%emt 0:02:30]} 32. Bxg6 {[%emt 0:01:22]} fxg6 {[%emt 0:01:30]} 33. Qd5 {[%emt 0:00:10]} Qg5 {[%emt 0:03:04]} 34. Qg8+ {[%emt 0:02:02]} Kd7 {[%emt 0:00:06]} 35. Qf7+ {[%emt 0:00:16]} Kc6 {[%emt 0:02:10]} 36. Qc7+ {[%emt 0:00:22]} Kd5 {[%emt 0:00:05]} 37. Qb7+ {[%emt 0:04:42]} Ke6 {[%emt 0:01:02]} 38. Qxa6 {[%emt 0:00:33]} Bd4 {[%emt 0:00:25]} 39. Qc8+ {[%emt 0:00:26]} Kd5 {[%emt 0:00:51]} 40. Qd7 {[%emt 0:02:16]} Ke4 {[%emt 0:01:41]} 41. Qc6+ {[%emt 0:34:04]} Kd3 {[%emt 0:02:06]} 42. d7 {[%emt 0:00:00]} Bf6 {[%emt 0:02:30]} 43. Qd6+ {[%emt 0:00:00]} Kc2 {[%emt 0:00:30]} 44. Bf4 {[%emt 0:00:00]} Qf5 {[%emt 0:01:30]} 45. Qd2+ {[%emt 0:00:00]} Kb3 {[%emt 0:00:30]} 46. Qb4+ {[%emt 0:00:00]} Kc2 {[%emt 0:00:30]} 47. Bc7 {[%emt 0:00:00]} Qxf2 {[%emt 0:02:30]} 48. Qxb5 {[%emt 0:00:00]} Bh4 {[%emt 0:04:30]} 49. Qxc4+ {[%emt 0:00:00]} Kb1 {[%emt 0:00:30]} 50. Qxh4 {[%emt 0:00:00]} Qxh4 {[%emt 0:00:30]} 51. d8=Q {[%emt 0:00:00]} g5 {[%emt 0:00:30]} 52. Be5 {[%emt 0:00:00]} Qe4 {[%emt 0:01:30]} 53. Qd4 {[%emt 0:00:00]} Qc2 {[%emt 0:00:30]} 54. b4 {[%emt 0:00:00]} 1-0

[Event "ESTCC 65 2019"]
[Site "Mali Losinj"]
[Date "2019.09.26"]
[Round "9.28"]
[White "Palsson, Bertil"]
[Black "Nordenstrom, Sven"]
[Result "0-1"]
[ECO "D00"]
[WhiteElo "1784"]
[BlackElo "1874"]
[Annotator "NA"]
[PlyCount "74"]
[EventDate "2019.09.18"]
[EventType "team-tourn"]
[EventCountry "CRO"]
[SourceTitle "playchess.com"]
[Source "ChessBase"]
[SourceQuality "1"]
[WhiteTeam "Sweden"]
[BlackTeam "Sweden"]
[WhiteTeamCountry "SWE"]
[BlackTeamCountry "SWE"]
[TimeControl "40/5400+30:1800+30"]

1. d4 {[%emt 0:00:30]} d5 {[%emt 0:01:30]} 2. e3 {[%emt 0:00:00]} Nf6 {[%emt 0:00:30]} 3. Bd3 {[%emt 0:00:00]} c6 {[%emt 0:01:30]} 4. f4 {[%emt 0:00:30]} Bg4 {[%emt 0:01:30]} 5. Nf3 {[%emt 0:00:00]} e6 {[%emt 0:00:30]} 6. Nbd2 {[%emt 0:02:00]} Nbd7 {[%emt 0:05:30]} 7. h3 {[%emt 0:00:30]} Bxf3 {[%emt 0:00:30]} 8. Nxf3 {[%emt 0:00:30]} Be7 {[%emt 0:02:30]} 9. O-O {[%emt 0:04:30]} O-O {[%emt 0:01:30]} 10. Ne5 {[%emt 0:04:30]} c5 {[%emt 0:03:30]} 11. c3 {[%emt 0:00:00]} cxd4 {[%emt 0:01:30]} 12. exd4 {[%emt 0:00:00]} g6 {[%emt 0:03:30]} 13. Qe1 {[%emt 0:04:30]} Nh5 {[%emt 0:03:30]} 14. Nxd7 {[%emt 0:00:30]} Qxd7 {[%emt 0:00:30]} 15. Be2 {[%emt 0:00:30]} Ng7 {[%emt 0:00:30]} 16. g4 {[%emt 0:00:30]} f5 {[%emt 0:03:30]} 17. g5 {[%emt 0:02:30]} Ne8 {[%emt 0:00:30]} 18. h4 {[%emt 0:03:30]} Nd6 {[%emt 0:03:30]} 19. h5 {[%emt 0:01:30]} Kg7 {[%emt 0:00:30]} 20. Kg2 {[%emt 0:02:30]} Rh8 {[%emt 0:02:30]} 21. Rh1 {[%emt 0:04:30]} Rae8 {[%emt 0:01:30]} 22. Rh4 {[%emt 0:09:30]} Nf7 {[%emt 0:01:30]} 23. a4 {[%emt 0:09:30]} a6 {[%emt 0:00:30]} 24. h6+ {[%emt 0:00:00]} Kf8 {[%emt 0:05:30]} 25. b4 {[%emt 0:01:00]} Bd6 {[%emt 0:03:30]} 26. b5 {[%emt 0:02:30]} a5 {[%emt 0:02:30]} 27. Ba3 {[%emt 0:13:30]} b6 {[%emt 0:04:30]} 28. Kf3 {[%emt 0:02:30]} Rc8 {[%emt 0:01:30]} 29. Rh2 {[%emt 0:04:30]} Bxa3 {[%emt 0:00:30]} 30. Rxa3 {[%emt 0:00:30]} Qd6 {[%emt 0:00:30]} 31. Ra1 {[%emt 0:02:30]} Nxg5+ {[%emt 0:00:30]} 32. Ke3 {[%emt 0:01:30]} Ne4 {[%emt 0:00:30]} 33. Bd3 {[%emt 0:00:30]} Nf6 {[%emt 0:01:30]} 34. Kf3 {[%emt 0:01:30]} g5 {[%emt 0:03:30]} 35. fxg5 {[%emt 0:04:34]} Qxh2 {[%emt 0:00:30]} 36. Qxe6 {[%emt 0:00:26]} Qh3+ {[%emt 0:01:30]} 37. Ke2 {[%emt 0:00:51]} Re8 {[%emt 0:00:00]} 0-1

[Event "ESTCC 65 2019"]
[Site "Mali Losinj"]
[Date "2019.09.26"]
[Round "9.29"]
[White "Lofgren, Claes"]
[Black "James, Kevin"]
[Result "1-0"]
[ECO "A40"]
[WhiteElo "2059"]
[BlackElo "1959"]
[Annotator "NA"]
[PlyCount "61"]
[EventDate "2019.09.18"]
[EventType "team-tourn"]
[EventCountry "CRO"]
[SourceTitle "playchess.com"]
[Source "ChessBase"]
[SourceQuality "1"]
[WhiteTeam "Denmark"]
[BlackTeam "Ireland"]
[WhiteTeamCountry "DEN"]
[BlackTeamCountry "IRL"]
[TimeControl "40/5400+30:1800+30"]

1. d4 {[%emt 0:00:30]} g6 {[%emt 0:00:30]} 2. c4 {[%emt 0:00:00]} Bg7 {[%emt 0:00:00]} 3. g3 {[%emt 0:00:00]} c5 {[%emt 0:00:00]} 4. d5 {[%emt 0:01:30]} d6 {[%emt 0:01:30]} 5. Bg2 {[%emt 0:00:30]} Nd7 {[%emt 0:03:30]} 6. Nf3 {[%emt 0:01:30]} Nb6 {[%emt 0:00:30]} 7. O-O {[%emt 0:07:30]} Bd7 {[%emt 0:03:30]} 8. Qc2 {[%emt 0:04:30]} Nf6 {[%emt 0:01:30]} 9. e4 {[%emt 0:02:30]} O-O {[%emt 0:02:30]} 10. Nfd2 {[%emt 0:04:30]} Qb8 {[%emt 0:07:30]} 11. Nc3 {[%emt 0:01:30]} e6 {[%emt 0:02:30]} 12. h3 {[%emt 0:05:30]} exd5 {[%emt 0:00:30]} 13. cxd5 {[%emt 0:00:30]} Re8 {[%emt 0:02:30]} 14. Kh2 {[%emt 0:02:30]} Nc8 {[%emt 0:07:30]} 15. a4 {[%emt 0:05:30]} b6 {[%emt 0:01:30]} 16. f4 {[%emt 0:02:30]} a6 {[%emt 0:07:30]} 17. Nf3 {[%emt 0:05:30]} Re7 {[%emt 0:06:30]} 18. e5 {[%emt 0:19:30]} Bf5 {[%emt 0:04:30]} 19. Qd1 {[%emt 0:05:30]} Ne4 {[%emt 0:03:30]} 20. Nh4 {[%emt 0:02:30]} Nxc3 {[%emt 0:01:30]} 21. bxc3 {[%emt 0:00:30]} Bd7 {[%emt 0:00:30]} 22. e6 {[%emt 0:02:30]} fxe6 {[%emt 0:05:30]} 23. dxe6 {[%emt 0:00:30]} Bxe6 {[%emt 0:00:00]} 24. Bxa8 {[%emt 0:01:30]} Qxa8 {[%emt 0:00:00]} 25. f5 {[%emt 0:01:30]} Bc4 {[%emt 0:04:30]} 26. Rf2 {[%emt 0:09:23]} Qe4 {[%emt 0:04:30]} 27. f6 {[%emt 0:03:08]} Rf7 {[%emt 0:00:30]} 28. Rf4 {[%emt 0:02:09]} Be2 {[%emt 0:01:30]} 29. Rxe4 {[%emt 0:00:27]} Bxd1 {[%emt 0:00:00]} 30. fxg7 {[%emt 0:01:21]} Ne7 {[%emt 0:01:00]} 31. Bg5 {[%emt 0:00:37]} 1-0

[Event "ESTCC 65 2019"]
[Site "Mali Losinj"]
[Date "2019.09.26"]
[Round "9.30"]
[White "Lohan, Martin"]
[Black "Nielsen, Jorgen Lovgren"]
[Result "0-1"]
[ECO "A04"]
[WhiteElo "1796"]
[BlackElo "2052"]
[Annotator "NA"]
[PlyCount "78"]
[EventDate "2019.09.18"]
[EventType "team-tourn"]
[EventCountry "CRO"]
[SourceTitle "playchess.com"]
[Source "ChessBase"]
[SourceQuality "1"]
[WhiteTeam "Ireland"]
[BlackTeam "Denmark"]
[WhiteTeamCountry "IRL"]
[BlackTeamCountry "DEN"]
[TimeControl "40/5400+30:1800+30"]

1. Nf3 {[%emt 0:00:30]} g6 {[%emt 0:01:30]} 2. g3 {[%emt 0:00:30]} f5 {[%emt 0:00:30]} 3. d3 {[%emt 0:00:30]} Nf6 {[%emt 0:00:30]} 4. Bg2 {[%emt 0:00:30]} Bg7 {[%emt 0:00:30]} 5. O-O {[%emt 0:00:30]} O-O {[%emt 0:01:30]} 6. Nbd2 {[%emt 0:01:30]} d6 {[%emt 0:00:30]} 7. e4 {[%emt 0:07:30]} e5 {[%emt 0:05:30]} 8. exf5 {[%emt 0:06:30]} gxf5 {[%emt 0:08:30]} 9. Re1 {[%emt 0:06:30]} Nc6 {[%emt 0:01:30]} 10. c3 {[%emt 0:04:30]} Kh8 {[%emt 0:05:30]} 11. a4 {[%emt 0:01:30]} Rb8 {[%emt 0:04:30]} 12. Nc4 {[%emt 0:14:30]} e4 {[%emt 0:06:30]} 13. dxe4 {[%emt 0:08:30]} fxe4 {[%emt 0:00:30]} 14. Nh4 {[%emt 0:08:30]} Bg4 {[%emt 0:07:30]} 15. f3 {[%emt 0:01:30]} exf3 {[%emt 0:00:30]} 16. Bxf3 {[%emt 0:00:30]} Qd7 {[%emt 0:02:30]} 17. Bf4 {[%emt 0:03:30]} Rbe8 {[%emt 0:02:30]} 18. Qd3 {[%emt 0:05:30]} Rxe1+ {[%emt 0:05:30]} 19. Rxe1 {[%emt 0:00:30]} Qf7 {[%emt 0:02:30]} 20. Ne3 {[%emt 0:08:31]} Qh5 {[%emt 0:04:30]} 21. Nxg4 {[%emt 0:01:56]} Nxg4 {[%emt 0:00:30]} 22. Bxg4 {[%emt 0:01:44]} Qxg4 {[%emt 0:00:30]} 23. Qf3 {[%emt 0:02:00]} Qxf3 {[%emt 0:08:30]} 24. Nxf3 {[%emt 0:00:07]} h6 {[%emt 0:00:30]} 25. Re3 {[%emt 0:05:43]} a5 {[%emt 0:03:30]} 26. Kg2 {[%emt 0:00:37]} Kh7 {[%emt 0:02:30]} 27. Kh3 {[%emt 0:00:17]} Rf5 {[%emt 0:00:30]} 28. Re2 {[%emt 0:02:53]} Rc5 {[%emt 0:00:30]} 29. Be3 {[%emt 0:00:59]} Rc4 {[%emt 0:01:30]} 30. Nd2 {[%emt 0:00:28]} Rxa4 {[%emt 0:00:30]} 31. Rf2 {[%emt 0:03:25]} Kg6 {[%emt 0:01:30]} 32. Nf3 {[%emt 0:00:43]} Re4 {[%emt 0:01:30]} 33. Nh4+ {[%emt 0:01:20]} Kh7 {[%emt 0:01:30]} 34. Nf5 {[%emt 0:00:21]} a4 {[%emt 0:05:21]} 35. Bd2 {[%emt 0:01:15]} Ne5 {[%emt 0:01:33]} 36. Nd4 {[%emt 0:00:42]} Kg6 {[%emt 0:05:00]} 37. Nb5 {[%emt 0:00:19]} Nd3 {[%emt 0:00:28]} 38. Rf1 {[%emt 0:01:25]} Nxb2 {[%emt 0:00:40]} 39. Nxc7 {[%emt 0:00:28]} Nc4 {[%emt 0:00:00]} 0-1

[Event "ESTCC 65 2019"]
[Site "Mali Losinj"]
[Date "2019.09.26"]
[Round "9.32"]
[White "Durkan, Joe"]
[Black "Fabrin, Morten"]
[Result "0-1"]
[ECO "B22"]
[WhiteElo "1459"]
[BlackElo "1998"]
[Annotator "NA"]
[PlyCount "84"]
[EventDate "2019.09.18"]
[EventType "team-tourn"]
[EventCountry "CRO"]
[SourceTitle "playchess.com"]
[Source "ChessBase"]
[SourceQuality "1"]
[WhiteTeam "Ireland"]
[BlackTeam "Denmark"]
[WhiteTeamCountry "IRL"]
[BlackTeamCountry "DEN"]
[TimeControl "40/5400+30:1800+30"]

1. e4 {[%emt 0:00:30]} c5 {[%emt 0:00:30]} 2. c3 {[%emt 0:00:00]} d5 {[%emt 0:00:30]} 3. e5 {[%emt 0:00:00]} Bf5 {[%emt 0:00:30]} 4. Nf3 {[%emt 0:00:30]} e6 {[%emt 0:00:30]} 5. Bb5+ {[%emt 0:04:30]} Nc6 {[%emt 0:00:30]} 6. O-O {[%emt 0:00:30]} Nge7 {[%emt 0:00:30]} 7. b3 {[%emt 0:07:30]} a6 {[%emt 0:00:30]} 8. Be2 {[%emt 0:00:30]} d4 {[%emt 0:02:30]} 9. cxd4 {[%emt 0:00:30]} Nxd4 {[%emt 0:01:30]} 10. d3 {[%emt 0:02:30]} Nxe2+ {[%emt 0:00:30]} 11. Qxe2 {[%emt 0:00:30]} Bxd3 {[%emt 0:00:30]} 12. Qd2 {[%emt 0:04:30]} Bxf1 {[%emt 0:00:30]} 13. Kxf1 {[%emt 0:00:30]} Nf5 {[%emt 0:00:30]} 14. Nc3 {[%emt 0:13:30]} Be7 {[%emt 0:01:30]} 15. Bb2 {[%emt 0:08:30]} Qxd2 {[%emt 0:02:30]} 16. Nxd2 {[%emt 0:00:00]} O-O {[%emt 0:00:30]} 17. Nce4 {[%emt 0:02:00]} Rad8 {[%emt 0:01:30]} 18. Nc4 {[%emt 0:01:30]} f6 {[%emt 0:03:30]} 19. f3 {[%emt 0:00:30]} fxe5 {[%emt 0:01:30]} 20. Bxe5 {[%emt 0:00:30]} Bf6 {[%emt 0:00:30]} 21. Bxf6 {[%emt 0:00:30]} gxf6 {[%emt 0:00:30]} 22. g4 {[%emt 0:00:30]} Nd4 {[%emt 0:00:30]} 23. Kf2 {[%emt 0:00:30]} Rc8 {[%emt 0:01:30]} 24. Ned6 {[%emt 0:04:30]} Rc7 {[%emt 0:00:30]} 25. Rc1 {[%emt 0:02:30]} e5 {[%emt 0:02:30]} 26. Ne3 {[%emt 0:04:30]} Ne6 {[%emt 0:01:30]} 27. Nef5 {[%emt 0:01:30]} Rd7 {[%emt 0:02:30]} 28. h4 {[%emt 0:07:30]} b5 {[%emt 0:03:30]} 29. Rd1 {[%emt 0:08:30]} Nd4 {[%emt 0:02:30]} 30. Nh6+ {[%emt 0:02:30]} Kh8 {[%emt 0:00:30]} 31. Ne4 {[%emt 0:01:30]} Rc7 {[%emt 0:02:30]} 32. Nd6 {[%emt 0:02:45]} c4 {[%emt 0:01:30]} 33. bxc4 {[%emt 0:01:45]} bxc4 {[%emt 0:01:30]} 34. Rc1 {[%emt 0:00:09]} c3 {[%emt 0:00:30]} 35. Ke3 {[%emt 0:01:56]} Rc6 {[%emt 0:01:30]} 36. Ne4 {[%emt 0:01:06]} c2 {[%emt 0:00:30]} 37. Nf5 {[%emt 0:08:14]} Nxf5+ {[%emt 0:00:30]} 38. gxf5 {[%emt 0:00:07]} Rd8 {[%emt 0:01:30]} 39. Nd2 {[%emt 0:01:19]} Rc3+ {[%emt 0:00:30]} 40. Ke2 {[%emt 0:00:52]} Rd4 {[%emt 0:00:30]} 41. Nb3 {[%emt 0:30:52]} Rxh4 {[%emt 0:30:30]} 42. Kd2 {[%emt 0:00:27]} Rxf3 {[%emt 0:01:30]} 0-1